bitfinex/quotes_ETHUSD_20251026
["timestamp","ask_amount","ask_price","bid_price","bid_amount"]
[1761477196636,0.001,3977.6,3977.5,1.07245183]
[1761477205548,0.001,3977.6,3977.5,0.80995183]
[1761477205920,0.001,3977.6,3977.5,1.07245183]
[1761477209250,0.001,3977.6,3977.5,0.80995183]
[1761477211553,0.001,3977.6,3977.5,1.07245183]
[1761477212156,0.001,3977.6,3977.5,0.80995183]
[1761477214155,0.001,3977.6,3977.5,0.2261653]
[1761477214588,0.001,3977.6,3977.5,0.4886653]
[1761477214776,0.001,3977.6,3977.5,1.13679965]
[1761477216157,0.001,3977.6,3977.5,1.64367965]
[1761477216575,1.3e-07,3977.9,3977.6,0.50688]
[1761477216775,0.4487,3979.1,3977.6,0.50688]
[1761477216776,0.4487,3979.1,3977.7,0.26893914]
[1761477216980,0.4487,3979.1,3977.8,0.44554568]
[1761477217184,0.4487,3979.1,3978.1,0.1256]
[1761477217399,0.4487,3979.1,3978.1,0.3881]
[1761477217562,0.4487,3979.4,3978.1,0.59068487]
[1761477217768,0.4487,3979.3,3978.2,0.58244568]
[1761477217983,0.4487,3979.3,3978.5,0.1256]
[1761477218261,0.4487,3979.3,3978.5,0.47068078]
[1761477218565,0.4487,3979.3,3978.5,0.5994351]
[1761477218770,0.4376,3979.2,3978.5,0.5994351]
[1761477219871,0.2329,3980.0,3978.5,0.5994351]
[1761477220187,0.4376,3979.1,3978.5,0.5994351]
[1761477221772,0.4376,3979.0,3978.5,0.5743]
[1761477221968,0.2208,3978.9,3978.5,0.5743]
[1761477222282,0.4386,3978.6,3978.5,0.5743]
[1761477224404,0.001,3978.6,3978.5,0.5743]
[1761477224562,0.4386,3978.6,3978.5,0.5743]
[1761477225978,0.001,3978.6,3978.5,0.5743]
[1761477226363,0.001,3978.6,3978.5,0.5994351]
[1761477227969,0.001,3978.6,3978.5,0.5743]
[1761477234405,0.001,3978.6,3978.5,0.8368]
[1761477239095,0.001,3978.6,3978.5,0.7112]
[1761477239408,0.001,3978.6,3978.5,0.8619351]
[1761477239603,0.001,3978.6,3978.5,1.01188624]
[1761477240387,0.001,3978.6,3978.5,1.33349859]
[1761477241609,0.001,3978.6,3978.5,0.72425114]
[1761477242113,0.001,3978.6,3978.5,0.5743]
[1761477242613,0.001,3978.6,3978.5,0.5994351]
[1761477242817,0.001,3978.6,3978.5,0.8619351]
[1761477243113,0.001,3978.6,3978.5,0.5743]
[1761477245015,0.001,3978.6,3978.5,0.8368]
[1761477245710,0.001,3978.6,3978.5,0.8619351]
[1761477246083,0.001,3978.6,3978.5,0.5743]
[1761477247095,0.001,3978.6,3978.5,0.8137]
[1761477253818,0.001,3978.6,3978.5,1.13531235]
[1761477254028,0.001,3978.6,3978.5,1.39781235]
[1761477254522,0.001,3978.6,3978.5,1.90469235]
[1761477254701,0.001,3978.6,3978.5,7.24989235]
[1761477260205,0.001,3978.6,3978.5,6.98739235]
[1761477263500,0.001,3978.6,3978.5,7.24989235]
[1761477266639,0.001,3978.6,3978.5,3.45989235]
[1761477270222,0.001,3978.6,3978.5,3.19739235]
[1761477273646,0.4612,3978.6,3978.5,0.8137]
[1761477273815,0.4612,3978.6,3978.5,0.5743]
[1761477289479,0.4612,3978.6,3978.4,0.002]
[1761477299379,0.4612,3978.6,3978.5,0.1256]
[1761477300793,0.001,3978.6,3978.5,0.1256]
[1761477301495,0.4527,3978.6,3978.5,0.1256]
[1761477305103,0.001,3978.6,3978.5,0.5320151]
[1761477305305,0.001,3978.6,3978.5,1.50202257]
[1761477305503,0.001,3978.6,3978.5,2.10512483]
[1761477306712,0.001,3978.6,3978.5,2.13025993]
[1761477307208,0.001,3978.6,3978.5,1.52101248]
[1761477307411,0.001,3978.6,3978.5,1.23558226]
[1761477308799,0.001,3978.6,3978.5,1.49808226]
[1761477310687,0.001,3978.6,3978.5,6.84328226]
[1761477314409,0.001,3978.6,3978.5,7.16489461]
[1761477314906,0.001,3978.6,3978.5,6.90239461]
[1761477315509,0.001,3978.6,3978.5,7.16489461]
[1761477316977,0.001,3978.6,3978.5,7.48085853]
[1761477317183,0.001,3978.6,3978.5,7.76628875]
[1761477317393,0.001,3978.6,3978.5,7.50378875]
[1761477317589,0.001,3978.6,3978.5,7.18782483]
[1761477317911,0.001,3978.6,3978.5,6.90239461]
[1761477318324,0.001,3978.6,3978.5,6.58078226]
[1761477327211,0.001,3978.6,3978.5,6.84328226]
[1761477327412,0.001,3978.6,3978.5,7.16489461]
[1761477332434,0.001,3978.6,3978.5,6.90239461]
[1761477334239,0.001,3978.6,3978.5,7.16489461]
[1761477334746,0.001,3979.4,3979.0,0.50688]
[1761477334933,0.001,3979.4,3978.6,2.77876946]
[1761477334934,0.4619,3980.3,3979.3,0.1175]
[1761477335119,0.4619,3980.3,3979.5,2.06208]
[1761477335312,0.4619,3980.3,3979.7,0.50688]
[1761477335514,0.4619,3980.3,3979.8,0.6984487]
[1761477336217,0.4619,3980.3,3979.9,0.4619]
[1761477336425,0.4619,3980.3,3980.0,0.02512562]
[1761477337110,0.4619,3980.3,3980.1,0.4619]
[1761477337322,0.4619,3980.3,3980.1,0.58795852]
[1761477337521,0.4619,3980.3,3980.1,0.4619]
[1761477338327,0.4619,3980.3,3980.1,0.48702499]
[1761477339349,0.4619,3980.3,3980.1,0.4619]
[1761477340056,0.4619,3980.3,3980.2,0.02512436]
[1761477340837,0.4619,3980.3,3980.2,0.48702436]
[1761477341033,0.001,3981.9,3980.2,0.48702436]
[1761477341237,0.6529,3980.8,3980.2,0.80298828]
[1761477341455,0.6529,3980.8,3980.3,0.45623598]
[1761477341755,0.6529,3980.8,3980.4,0.0251231]
[1761477341938,0.4325,3980.7,3980.4,0.0251231]
[1761477342452,0.4325,3980.7,3980.5,0.4325]
[1761477343536,0.4325,3980.7,3980.6,0.02512184]
[1761477344749,0.4335,3980.7,3980.6,0.02512184]
[1761477344956,0.4335,3980.7,3980.6,0.15072184]
[1761477345118,0.001,3980.7,3980.6,0.15072184]
[1761477345325,0.001,3980.7,3980.6,0.02512184]
[1761477346830,0.4335,3980.7,3980.5,0.4325]
[1761477348731,0.4335,3980.7,3980.5,1.9877]
[1761477349033,0.4335,3980.7,3980.6,0.59123236]
[1761477351330,0.4335,3980.7,3980.6,1.02473236]
[1761477354460,0.001,3980.7,3980.6,1.02473236]
[1761477355347,0.4335,3980.7,3980.6,1.15033236]
[1761477359040,0.001,3980.7,3980.6,1.15033236]
[1761477359235,0.4335,3980.7,3980.6,1.15033236]
[1761477359773,0.001,3980.7,3980.6,7.3357342]
[1761477359978,0.001,3981.1,3980.7,2.06208]
[1761477360273,0.001,3981.1,3980.9,1.5552]
[1761477360443,0.001,3981.1,3981.0,0.43614953]
[1761477360642,0.001,3981.1,3981.0,0.86864953]
[1761477361144,0.001,3981.1,3981.0,7.2852258]
[1761477361470,0.001,3981.1,3981.0,7.26010649]
[1761477361672,0.001,3981.1,3981.0,8.09033013]
[1761477361875,0.001,3981.1,3981.0,8.60991013]
[1761477363299,2.645,3984.6,3981.2,0.50688]
[1761477363499,0.1256,3983.6,3982.4,0.1256]
[1761477363703,0.1256,3983.6,3982.9,0.1256]
[1761477366409,2.645,3984.2,3982.9,0.1256]
[1761477366581,0.1256,3983.8,3982.9,0.1256]
[1761477366786,0.1256,3983.6,3982.9,0.1256]
[1761477366998,0.03133791,3983.5,3982.9,0.1256]
[1761477368002,0.1256,3983.6,3982.9,0.1256]
[1761477368303,0.03133791,3983.5,3982.9,0.1256]
[1761477376113,0.1256,3983.6,3982.9,0.1256]
[1761477377690,2.645,3984.2,3982.9,0.1256]
[1761477378025,2.138,3986.0,3982.9,0.1256]
[1761477378026,0.1306,3983.3,3982.9,0.1256]
[1761477378236,0.2277,3984.8,3983.0,0.0251067]
[1761477378404,0.1306,3986.1,3983.9,0.1256]
[1761477378595,0.1256,3984.8,3983.9,0.1256]
[1761477379224,2.645,3985.7,3983.9,0.1256]
[1761477379428,0.1256,3984.9,3983.9,0.1256]
[1761477379891,0.1256,3984.9,3984.3,0.1256]
[1761477380909,0.03133791,3984.8,3984.3,0.1256]
[1761477381799,3.15188,3984.5,3982.5,0.2224]
[1761477382028,0.001,3983.8,3982.5,0.002]
[1761477382408,0.2204,3983.7,3982.5,0.002]
[1761477383821,0.2204,3983.7,3982.6,0.02510922]
[1761477384431,0.2204,3983.7,3982.7,0.445]
[1761477384630,0.001,3983.8,3982.8,0.02510796]
[1761477385008,0.001,3983.8,3982.9,0.445]
[1761477386902,0.001,3983.8,3982.6,0.95188]
[1761477387131,0.001,3983.8,3982.7,1.125596]
[1761477387431,0.001,3983.8,3982.8,0.02510796]
[1761477387638,0.001,3983.8,3983.0,0.50688]
[1761477388153,0.001,3983.8,3983.1,0.69780607]
[1761477388520,0.001,3983.8,3983.2,0.445]
[1761477391845,0.001,3983.8,3983.7,0.1256]
[1761477392216,0.001,3983.8,3983.7,0.5706]
[1761477394764,0.001,3983.8,3983.7,0.1256]
[1761477396958,0.001,3983.8,3983.7,0.59570229]
[1761477397264,0.001,3983.8,3983.7,0.79171464]
[1761477397633,0.001,3983.8,3983.7,0.9253925]
[1761477405571,0.001,3983.8,3983.7,0.60378015]
[1761477405767,0.001,3983.8,3983.7,0.47010229]
[1761477405972,0.001,3983.8,3983.7,0.60070229]
[1761477407245,0.001,3983.8,3983.7,0.72630229]
[1761477407568,0.001,3983.8,3983.7,6.07150229]
[1761477407795,0.001,3985.2,3983.7,6.07150229]
[1761477407796,0.001,3985.2,3984.9,0.05]
[1761477407954,0.1328,3987.2,3985.0,0.5319741]
[1761477408156,0.1328,3987.2,3985.0,4.77910591]
[1761477408356,0.1328,3987.2,3985.2,0.50688]
[1761477408572,0.1328,3987.2,3985.4,0.50688]
[1761477408813,0.1328,3987.2,3985.6,0.50688]
[1761477409016,0.1328,3987.2,3985.7,0.36336871]
[1761477409302,0.1328,3987.2,3985.7,1.00466871]
[1761477409468,0.1328,3987.2,3985.8,0.15115487]
[1761477409802,0.1328,3987.2,3985.9,0.02508843]
[1761477410006,0.1328,3987.2,3985.8,0.61255487]
[1761477410158,0.1328,3987.2,3985.9,0.58544572]
[1761477410488,0.1328,3987.2,3985.9,0.4614]
[1761477410695,0.1328,3987.2,3985.9,0.16376139]
[1761477410861,0.1328,3987.2,3985.7,0.1799]
[1761477412181,0.1328,3987.2,3985.7,0.6413]
[1761477412378,0.03133791,3987.1,3985.7,0.1799]
[1761477412691,0.1328,3987.2,3985.7,0.1799]
[1761477412692,0.1328,3987.2,3985.8,0.02508906]
[1761477412899,0.1328,3987.2,3985.8,0.48648906]
[1761477414207,0.1328,3987.2,3985.9,0.33827902]
[1761477414364,0.1328,3987.2,3986.0,0.0250878]
[1761477414565,0.1328,3987.2,3986.0,0.4864878]
[1761477414899,0.1328,3987.2,3986.1,0.56137902]
[1761477415063,0.1328,3987.2,3986.2,0.02508654]
[1761477415267,0.1328,3987.2,3986.3,0.4614]
[1761477415596,0.1259,3987.5,3986.4,0.02508528]
[1761477415891,0.1259,3987.5,3986.4,0.3633643]
[1761477416093,0.1259,3987.5,3986.5,0.4614]
[1761477416399,0.1259,3987.5,3986.6,0.02508403]
[1761477417583,0.001,3987.2,3986.6,0.02508403]
[1761477417969,0.001,3987.2,3987.1,0.1256]
[1761477418703,0.1068,3987.2,3987.1,0.1256]
[1761477421599,0.1068,3987.2,3986.7,0.1799]
[1761477421600,0.001,3987.2,3986.7,0.1799]
[1761477421777,0.001,3987.2,3986.7,0.6161]
[1761477422818,0.001,3987.2,3986.7,0.4362]
[1761477423021,0.001,3987.2,3986.1,0.4362]
[1761477423187,0.001,3987.2,3986.8,0.2317]
[1761477423822,0.1,3987.2,3986.8,0.2317]
[1761477424417,0.001,3987.2,3986.8,0.2317]
[1761477424714,0.001,3987.2,3986.8,0.6679]
[1761477424918,0.001,3987.2,3986.8,0.2317]
[1761477425116,0.001,3987.2,3986.3,0.02508591]
[1761477425285,0.001,3987.2,3986.4,0.4362]
[1761477425486,0.001,3987.2,3986.4,0.1563]
[1761477425694,0.1,3987.2,3986.4,0.1563]
[1761477426936,0.1,3987.2,3986.2,0.62926708]
[1761477427088,0.1,3987.2,3986.3,0.21844671]
[1761477428321,0.1,3987.2,3986.0,0.4362]
[1761477429624,0.1,3987.2,3986.1,0.02508717]
[1761477430118,0.1,3987.2,3986.2,0.4334]
[1761477430321,0.1,3987.2,3986.3,0.02508591]
[1761477430698,0.1,3987.2,3986.3,0.4334]
[1761477431717,0.1,3987.2,3987.1,0.1256]
[1761477435616,0.1,3987.2,3986.5,0.4334]
[1761477436029,0.001,3987.2,3986.5,0.4334]
[1761477436838,0.001,3987.2,3986.6,0.4334]
[1761477440150,0.001,3987.2,3986.5,0.4334]
[1761477443548,0.001,3987.2,3986.1,1.5552]
[1761477443735,0.099,3987.1,3986.2,0.92437889]
[1761477444117,0.099,3987.1,3986.3,0.4334]
[1761477444432,0.001,3987.2,3986.3,0.4334]
[1761477444640,0.001,3987.2,3986.3,0.45848591]
[1761477445653,0.001,3987.2,3987.1,0.1256]
[1761477447444,0.1,3987.2,3987.1,0.1256]
[1761477448658,0.2573,3987.2,3987.1,0.1256]
[1761477455857,0.2573,3987.2,3985.7,1.94770626]
[1761477455858,0.2573,3987.2,3985.8,0.4334]
[1761477456057,0.13033791,3987.1,3986.9,0.1256]
[1761477456560,0.099,3987.0,3986.9,0.1256]
[1761477456757,0.2573,3987.0,3986.9,0.1256]
[1761477461481,0.76418,3987.0,3986.9,0.1256]
[1761477461639,0.41423791,3987.0,3986.4,0.1256]
[1761477461846,0.3161,3986.9,3986.4,0.1256]
[1761477462029,0.03133791,3986.8,3986.4,0.1256]
[1761477462340,0.34743791,3986.8,3986.3,0.1256]
[1761477462539,0.3182,3986.7,3986.3,0.1256]
[1761477462757,0.03133791,3986.6,3986.3,0.1256]
[1761477462939,0.13033791,3986.6,3986.3,0.1256]
[1761477463146,0.47777582,3986.6,3986.2,0.1256]
[1761477463433,0.099,3986.5,3986.2,0.1256]
[1761477463967,0.37877582,3986.4,3986.2,0.1256]
[1761477464167,0.41011373,3986.4,3986.2,0.1256]
[1761477464362,0.099,3986.3,3986.2,0.1256]
[1761477464545,0.03133791,3986.4,3986.2,0.1256]
[1761477464744,0.13033791,3986.4,3986.2,0.1256]
[1761477465144,0.50911373,3986.3,3986.2,0.1256]
[1761477465660,0.099,3986.3,3986.2,0.1256]
[1761477466560,0.13033791,3986.3,3985.1,0.002]
[1761477466748,0.13033791,3986.3,3986.1,0.1256]
[1761477466948,0.099,3986.2,3986.1,0.1256]
[1761477467672,0.13033791,3986.2,3985.1,0.002]
[1761477467857,0.13033791,3986.2,3985.8,0.1256]
[1761477468167,0.099,3986.1,3985.1,0.002]
[1761477468351,0.03133791,3986.0,3985.7,0.1256]
[1761477468750,0.2771,3985.9,3985.7,0.1256]
[1761477468938,0.03133791,3985.8,3985.7,0.1256]
[1761477469476,0.2771,3985.8,3985.7,0.1256]
[1761477470842,0.4027,3986.0,3985.7,0.1256]
[1761477471243,0.2771,3985.9,3985.7,0.1256]
[1761477472474,0.1256,3986.0,3985.7,0.1256]
[1761477472671,0.2246,3986.0,3985.7,0.1256]
[1761477472874,0.1256,3986.0,3985.7,0.1256]
[1761477473043,0.099,3985.9,3985.7,0.1256]
[1761477474857,0.1256,3986.0,3985.7,0.1256]
[1761477475058,0.001,3987.0,3985.8,0.45548906]
[1761477475387,0.001,3987.0,3985.9,0.31000469]
[1761477475581,0.001,3987.0,3986.0,0.75698456]
[1761477475744,0.001,3987.0,3986.1,0.31000343]
[1761477475954,0.001,3987.0,3986.2,0.3306096]
[1761477476158,0.001,3987.0,3986.3,0.28491626]
[1761477476448,0.001,3987.0,3986.3,0.71531626]
[1761477476649,0.001,3987.0,3986.4,0.4304]
[1761477477146,0.001,3987.0,3986.5,0.4304]
[1761477477351,0.001,3987.0,3986.0,0.4304]
[1761477485183,0.001,3987.0,3986.9,0.1256]
[1761477487265,0.1017,3987.0,3986.9,0.1256]
[1761477487477,0.001,3987.0,3986.9,0.1256]
[1761477488205,0.001,3987.0,3986.9,0.5912]
[1761477488561,0.001,3987.0,3986.9,0.1256]
[1761477494384,0.001,3987.0,3986.9,0.562]
[1761477495532,0.001,3987.0,3986.9,0.85017076]
[1761477495675,0.001,3987.2,3987.0,0.28817076]
[1761477495880,0.001,3987.2,3987.1,0.2348]
[1761477496123,0.001,3987.2,3987.1,0.3604]
[1761477496291,0.001,3987.2,3987.1,0.2348]
[1761477496982,0.001,3987.2,3987.1,0.6712]
[1761477504146,0.001,3987.2,3987.1,0.77149448]
[1761477506403,0.001,3987.2,3987.1,0.89709448]
[1761477507039,0.001,3987.2,3987.1,6.24229448]
[1761477507343,0.001,3987.2,3987.1,6.86672393]
[1761477507507,0.001,3987.2,3987.1,6.19552393]
[1761477507831,0.001,3987.2,3987.1,6.86672393]
[1761477509711,0.001,3987.2,3987.1,6.09522945]
[1761477510237,0.001,3987.2,3987.1,6.53162945]
[1761477511505,0.001,3987.2,3987.1,6.09522945]
[1761477512815,0.001,3987.2,3987.1,2.30522945]
[1761477513005,0.001,3987.2,3987.1,1.6808]
[1761477523160,0.001,3987.2,3987.1,1.5552]
[1761477533180,0.001,3987.2,3987.1,1.6808]
[1761477536976,0.001,3987.2,3987.1,2.56655409]
[1761477538392,0.001,3987.2,3987.1,2.10625409]
[1761477538599,0.001,3987.2,3987.1,2.7773795]
[1761477539097,0.001,3987.2,3987.1,2.5495795]
[1761477539300,0.001,3987.2,3987.1,2.0892795]
[1761477539985,0.001,3987.2,3987.1,2.5495795]
[1761477541308,0.001,3987.2,3987.1,2.0892795]
[1761477543809,0.001,3987.2,3987.1,1.76602541]
[1761477544579,0.001,3987.2,3987.1,2.23422541]
[1761477544781,0.001,3987.2,3987.1,1.76602541]
[1761477545102,0.001,3987.2,3987.1,2.23422541]
[1761477546680,0.001,3987.2,3987.1,1.76602541]
[1761477547003,0.001,3987.2,3987.1,1.89162541]
[1761477555231,0.1022,3987.2,3987.1,1.89162541]
[1761477557802,0.001,3987.2,3987.1,1.89162541]
[1761477560361,0.1022,3987.2,3987.1,1.89162541]
[1761477565443,0.001,3987.2,3987.1,1.89162541]
[1761477566136,0.001,3987.2,3987.1,2.21490028]
[1761477566342,0.001,3987.2,3987.1,2.64620028]
[1761477566638,0.001,3987.2,3987.1,2.21490028]
[1761477569971,0.001,3987.2,3987.1,1.89162541]
[1761477577299,0.001,3987.2,3987.1,1.6808]
[1761477578980,0.001,3987.2,3987.1,0.1256]
[1761477579313,0.001,3987.2,3987.0,0.002]
[1761477579314,0.13353791,3987.2,3987.0,0.002]
[1761477579691,0.1012,3987.1,3987.0,0.002]
[1761477589225,0.1012,3987.1,3987.0,0.1276]
[1761477593166,0.13253791,3987.1,3987.0,0.1276]
[1761477594268,0.13253791,3987.1,3987.0,0.002]
[1761477595876,0.13353791,3987.1,3987.0,0.002]
[1761477600484,0.64041791,3987.1,3987.0,0.002]
[1761477600785,0.76601791,3987.1,3987.0,0.002]
[1761477603192,3.40401791,3987.1,3987.0,0.002]
[1761477603397,3.7446197,3987.1,3987.0,0.002]
[1761477606300,1.80556174,3989.9,3988.2,1.2202255]
[1761477606501,0.1791,3990.1,3989.3,0.2199]
[1761477606666,0.1791,3990.1,3989.4,1.86384204]
[1761477607001,0.1791,3990.1,3989.4,4.17103387]
[1761477607296,0.1053,3990.0,3989.4,1.5552]
[1761477607768,0.2153,3989.9,3989.4,1.5552]
[1761477608109,0.2153,3989.9,3989.2,1.78502292]
[1761477608312,0.2153,3989.9,3988.8,1.7343]
[1761477608313,0.1064,3989.8,3989.0,1.78502292]
[1761477608809,0.1064,3989.8,3988.9,1.78502292]
[1761477609010,0.1064,3989.8,3988.8,1.78502292]
[1761477609171,0.1064,3989.8,3988.7,1.78502292]
[1761477610265,0.63248,3989.7,3988.6,1.78502292]
[1761477610512,0.50688,3989.7,3988.2,1.78502292]
[1761477610678,0.50688,3989.5,3988.2,2.23902292]
[1761477610880,0.50688,3989.5,3988.3,0.26742229]
[1761477611081,0.50688,3989.3,3988.3,0.26742229]
[1761477611307,0.50688,3989.3,3988.3,1.82262229]
[1761477611502,0.1064,3989.2,3988.3,1.82262229]
[1761477611693,0.1064,3989.2,3988.3,0.26742229]
[1761477611882,0.1064,3989.2,3988.4,0.42815452]
[1761477614424,0.1064,3989.2,3988.2,0.454]
[1761477616008,0.50688,3989.1,3988.1,0.002]
[1761477616399,0.1064,3989.0,3988.1,0.002]
[1761477616595,0.50688,3988.9,3988.1,0.002]
[1761477616809,0.66058,3988.9,3988.1,0.002]
[1761477617021,0.1069,3988.8,3988.1,0.002]
[1761477617515,0.1069,3988.8,3988.4,1.33427901]
[1761477620313,0.1256,3988.6,3988.4,1.33427901]
[1761477620902,0.1069,3988.5,3988.4,1.33427901]
[1761477623809,0.001,3990.1,3988.5,0.454]
[1761477623998,0.2158,3993.0,3989.8,1.33335844]
[1761477624200,7.25695218,3995.7,3989.4,1.5552]
[1761477624201,0.35108,3992.1,3991.1,0.2189]
[1761477624413,0.1481,3994.0,3992.0,0.2189]
[1761477624620,0.1481,3994.0,3992.3,1.3290107]
[1761477624939,0.1481,3994.0,3992.1,1.3290107]
[1761477625142,0.1481,3994.0,3992.0,0.2189]
[1761477625143,0.42671,3994.0,3992.2,0.2189]
[1761477625320,0.42671,3994.0,3992.7,1.3290107]
[1761477625321,0.1481,3994.0,3992.7,1.3290107]
[1761477625627,0.75111258,3996.4,3993.9,0.2189]
[1761477625836,2.7861,3997.0,3994.8,1.32395373]
[1761477626036,2.638,3996.8,3994.3,1.32395373]
[1761477626205,1.20919331,3996.9,3994.1,1.32395373]
[1761477626403,0.099,3996.8,3994.9,0.75102796]
[1761477626948,2.737,3996.8,3995.0,0.454]
[1761477627145,0.3244239,3996.7,3994.9,0.75102796]
[1761477627351,0.099,3996.7,3994.9,0.75102796]
[1761477627644,0.099,3996.6,3994.9,0.75102796]
[1761477627942,0.099,3996.6,3994.9,1.20502796]
[1761477628254,0.099,3996.6,3994.9,0.75102796]
[1761477628774,0.50688,3996.5,3994.9,0.75102796]
[1761477628915,0.099,3996.6,3994.9,0.75102796]
[1761477629115,0.099,3996.5,3994.9,0.75102796]
[1761477630862,0.099,3996.5,3994.9,1.20502796]
[1761477631063,0.50688,3996.4,3995.0,0.454]
[1761477631363,0.099,3996.5,3995.0,0.454]
[1761477631558,0.50688,3996.4,3995.0,0.454]
[1761477631754,0.60588,3996.5,3995.0,0.454]
[1761477632043,0.099,3996.5,3995.0,0.454]
[1761477632342,0.99792496,3997.0,3995.0,0.454]
[1761477632511,0.27932152,3996.9,3995.0,0.454]
[1761477632710,0.78620152,3996.9,3995.0,0.454]
[1761477632947,0.50688,3996.7,3995.0,0.454]
[1761477633354,0.18032152,3996.9,3995.0,0.454]
[1761477633355,0.50688,3996.5,3995.0,0.454]
[1761477633743,0.1248,3996.3,3995.8,0.1248]
[1761477633948,0.50688,3996.2,3995.0,0.454]
[1761477634128,0.50688,3996.2,3995.6,0.1248]
[1761477634751,0.1248,3996.3,3995.6,0.1248]
[1761477635655,0.001,3996.5,3995.7,0.454]
[1761477636262,0.001,3996.5,3995.8,0.18132152]
[1761477636828,0.099,3996.4,3995.0,0.454]
[1761477637027,0.099,3996.4,3995.1,0.454]
[1761477637227,0.099,3996.4,3995.5,0.2471]
[1761477637427,0.099,3996.4,3995.1,0.454]
[1761477637428,0.50688,3996.3,3995.1,0.454]
[1761477637745,0.50688,3996.3,3993.9,0.2189]
[1761477637746,0.1552,3995.2,3994.9,0.454]
[1761477638070,0.1552,3995.2,3994.2,0.6729]
[1761477638476,0.50688,3995.1,3994.2,0.72578]
[1761477638678,0.1552,3995.2,3994.2,0.2189]
[1761477638977,0.1552,3995.2,3994.3,0.4307]
[1761477639363,0.02460015,3995.2,3994.3,0.4307]
[1761477640377,0.001,3996.5,3994.3,0.4307]
[1761477640585,0.50688,3995.9,3994.3,0.4307]
[1761477640879,0.50688,3995.7,3994.3,0.4307]
[1761477641479,0.001,3996.5,3994.4,0.02503504]
[1761477641665,0.1249,3996.5,3994.3,0.4307]
[1761477641979,0.50688,3996.4,3994.4,0.24804337]
[1761477642276,0.50788,3996.5,3994.4,0.24804337]
[1761477642581,0.63178,3996.5,3994.5,0.4307]
[1761477642944,0.50788,3996.5,3994.5,0.4307]
[1761477643147,0.1239,3996.4,3994.5,0.4307]
[1761477643348,0.50688,3996.3,3994.5,0.4307]
[1761477643548,0.50688,3996.1,3994.5,0.4307]
[1761477643779,0.50688,3995.9,3994.5,0.4307]
[1761477644284,0.326978,3996.2,3994.5,0.4307]
[1761477644524,0.50688,3996.1,3994.5,1.75465373]
[1761477644672,2.639,3996.5,3994.7,1.32395373]
[1761477644673,0.001,3996.5,3994.7,1.32395373]
[1761477644987,0.001,3996.5,3994.6,0.02503379]
[1761477644988,0.001,3996.5,3996.4,0.2242]
[1761477645488,0.001,3996.5,3996.4,0.6549]
[1761477645785,0.001,3996.5,3996.4,1.53036339]
[1761477646482,0.001,3996.5,3996.4,0.7797]
[1761477646982,0.001,3996.5,3996.4,0.349]
[1761477648053,0.23570026,3997.1,3996.4,0.6549]
[1761477649087,0.23570026,3997.1,3996.4,0.2242]
[1761477649286,0.00318028,3997.8,3996.4,0.2242]
[1761477649287,0.00318028,3997.8,3996.9,0.50688]
[1761477649496,0.00368158,3999.9,3997.7,0.2242]
[1761477649708,0.00368158,3999.9,3997.9,1.31008529]
[1761477649709,0.099,3999.8,3997.9,1.31008529]
[1761477650405,0.099,3999.7,3997.8,0.4307]
[1761477650608,0.00368158,3999.9,3997.8,0.62719853]
[1761477650781,0.00368158,3999.9,3997.8,1.93728382]
[1761477650782,0.10268158,3999.9,3997.8,1.93728382]
[1761477651104,0.10268158,3999.9,3998.1,1.31008529]
[1761477651303,0.10268158,3999.9,3998.3,1.31008529]
[1761477651668,0.50688,3999.8,3998.4,0.6549]
[1761477652302,0.50688,3999.8,3998.6,1.31008529]
[1761477653013,0.00368158,3999.9,3998.7,1.74078529]
[1761477653172,0.00368158,3999.9,3999.1,1.31008529]
[1761477653374,0.00368158,3999.9,3999.3,1.31008529]
[1761477653811,0.00368158,3999.9,3999.5,1.76527164]
[1761477654187,0.1491,4002.0,3999.8,1.76527164]
[1761477654386,0.1537,4001.9,4000.3,1.32058207]
[1761477654701,0.1537,4001.9,4000.1,1.32058207]
[1761477654899,0.1537,4001.9,4000.4,1.32058207]
[1761477655499,0.1537,4001.9,4000.3,0.2242]
[1761477655500,0.1537,4001.9,4000.5,1.32058207]
[1761477655810,0.1491,4002.0,4000.8,1.32058207]
[1761477656015,0.1491,4002.0,4001.0,1.32058207]
[1761477656211,0.1491,4002.0,4000.8,1.32058207]
[1761477656378,0.099,4001.9,4000.6,1.32058207]
[1761477656580,0.099,4001.9,4000.5,1.32058207]
[1761477656779,0.50688,4001.8,4000.3,1.32058207]
[1761477657018,0.50688,4001.8,4000.0,0.2242]
[1761477657019,0.50688,4001.8,4000.2,1.32058207]
[1761477657210,0.50688,4001.6,4000.2,1.32058207]
[1761477657574,0.50688,4001.4,4000.1,1.32058207]
[1761477657808,0.50688,4001.4,4000.0,1.32058207]
[1761477658012,0.50578,4000.0,3999.4,1.32058207]
[1761477658178,0.50578,4000.0,3999.0,0.2242]
[1761477658179,0.50578,4000.0,3999.2,1.32058207]
[1761477658376,0.2473,3999.9,3998.1,1.32058207]
[1761477658700,0.2473,3999.9,3998.1,0.2242]
[1761477659105,0.2473,3999.9,3997.2,0.4307]
[1761477659901,0.2473,3999.9,3997.1,0.6549]
[1761477660096,1.007038,3999.8,3997.1,0.6549]
[1761477660295,0.50688,3999.6,3996.9,0.2242]
[1761477660602,4.70008,3999.4,3996.9,0.2242]
[1761477660790,2.06208,3999.2,3996.9,0.2242]
[1761477660996,0.50688,3999.0,3996.9,0.2242]